fUST/lending_fUST_20240712
["ID","MTS","AMOUNT","RATE_DAILY","PERIOD"]
[331802987,1720766999826,-284.922456,0.00025,7]
[331802988,1720766999855,-1014.23748481,0.00025025,2]
[331802989,1720766999881,-151.0,0.00025059,2]
[331802990,1720766999904,-302.33493269,0.00025124,2]
[331802991,1720766999932,-1014.23748481,0.0002515,2]
[331802992,1720766999957,-288.64270747,0.00025189,2]
[331802993,1720766999983,-500.0,0.00025189,2]
[331802994,1720767000010,-500.0,0.00025189,2]
[331802995,1720767000036,-500.0,0.00025189,2]
[331802996,1720767000063,-442.30967074,0.00025189,2]
[331802997,1720767000088,-500.0,0.00025189,2]
[331802998,1720767000114,-500.0,0.00025189,2]
[331802999,1720767000139,-500.0,0.00025189,2]
[331803000,1720767000164,-500.0,0.00025189,2]
[331803001,1720767000190,-500.0,0.00025189,2]
[331803002,1720767000215,-500.0,0.00025189,2]
[331803003,1720767000240,-500.0,0.00025189,2]
[331803004,1720767000265,-500.0,0.00025189,2]
[331803005,1720767000290,-500.0,0.00025189,2]
[331803006,1720767000315,-395.74423625,0.00025189,2]
[331803007,1720767000341,-500.0,0.00025189,2]
[331803008,1720767000365,-500.0,0.00025189,2]
[331803009,1720767000390,-277.02096537,0.00025189,2]
[331803010,1720767000420,-598.93629295,0.0002519,5]
[331803011,1720767000446,-327350.753767,0.0002519,3]
[331803012,1720767000471,-151.0,0.00025194,7]
[331803013,1720767000496,-151.0,0.00025194,7]
[331803014,1720767000625,-189.34947455,0.000252,2]
[331803015,1720767000651,-187488.75467747,0.000252,3]
[331803016,1720767000677,-194.02479404,0.000252,2]
[331803017,1720767000702,-1136.91989435,0.000252,2]
[331803018,1720767000727,-151.0,0.000252,7]
[331803019,1720767000754,-151.0,0.000252,7]
[331803020,1720767000780,-151.0,0.000252,7]
[331803021,1720767000806,-30000.0,0.00025204,2]
[331803022,1720767000830,-151.0,0.00025204,7]
[331803023,1720767000861,-151.0,0.00025204,7]
[331803024,1720767000886,-284.922456,0.00025204,7]
[331803025,1720767000911,-284.922456,0.00025204,7]
[331803026,1720767000939,-287.313508,0.00025204,7]
[331803027,1720767000964,-153.288607,0.00025204,7]
[331803028,1720767000988,-153.288607,0.00025204,7]
[331803029,1720767001013,-151.0,0.00025204,7]
[331803030,1720767001039,-151.0,0.00025204,7]
[331803031,1720767001064,-151.0,0.00025204,7]
[331803032,1720767001089,-151.0,0.00025204,7]
[331803033,1720767001116,-172.034815,0.00025204,7]
[331803034,1720767001141,-172.034815,0.00025204,7]
[331803035,1720767001166,-151.0,0.00025204,7]
[331803036,1720767001190,-612.926556,0.00025204,7]
[331803037,1720767001214,-151.0,0.00025204,7]
[331803038,1720767001239,-612.926556,0.00025204,7]
[331803039,1720767001263,-211.846811,0.00025204,7]
[331803040,1720767001288,-211.846811,0.00025204,7]
[331803041,1720767001312,-761.020686,0.00025204,7]
[331803042,1720767001337,-605.070456,0.00025204,7]
[331803043,1720767001364,-160.563304,0.00025204,2]
[331803044,1720767001390,-761.020686,0.00025204,7]
[331803045,1720767001415,-605.070456,0.00025204,7]
[331803046,1720767001439,-1512.153808,0.00025204,7]
[331803047,1720767001470,-1512.153808,0.00025204,7]
[331803048,1720767001494,-229.617439,0.00025204,7]
[331803049,1720767001520,-161.686419,0.00025204,7]
[331803050,1720767001546,-672.609766,0.00025204,7]
[331803051,1720767001571,-672.609766,0.00025204,7]
[331803052,1720767001596,-151.0,0.00025204,7]
[331803053,1720767001620,-151.0,0.00025204,7]
[331803054,1720767001645,-151.0,0.00025204,7]
[331803055,1720767001669,-1283.20582221,0.00025249,2]
[331803056,1720767001704,-1014.23748481,0.00025275,2]
[331803057,1720767001737,-79994.86120709,0.0002537,2]
[331803058,1720767001767,-256.54,0.0002537,7]
[331803059,1720767001798,-151.0,0.0002537,7]
[331803060,1720767001829,-284.922456,0.0002537,7]
[331803061,1720767001865,-284.922456,0.0002537,7]
[331803062,1720767001897,-153.288607,0.0002537,7]
[331803063,1720767001930,-153.288607,0.0002537,7]
[331803064,1720767001961,-151.0,0.0002537,7]
[331803065,1720767001992,-151.0,0.0002537,7]
[331803066,1720767002026,-165.134278,0.0002537,7]
[331803067,1720767002057,-151.0,0.0002537,7]
[331803068,1720767002085,-172.034815,0.0002537,7]
[331803069,1720767002116,-172.034815,0.0002537,7]
[331803070,1720767002148,-154.880058,0.0002537,7]
[331803071,1720767002180,-612.926556,0.0002537,7]
[331803072,1720767002213,-151.0,0.0002537,7]
[331803073,1720767002248,-612.926556,0.0002537,7]
[331803074,1720767002280,-211.846811,0.0002537,7]
[331803075,1720767002311,-211.846811,0.0002537,7]
[331803076,1720767002339,-151.0,0.0002537,2]
[331803077,1720767002370,-761.020686,0.0002537,7]
[331803078,1720767002402,-605.070456,0.0002537,7]
[331803079,1720767002436,-761.020686,0.0002537,7]
[331803080,1720767002467,-605.070456,0.0002537,7]
[331803081,1720767002499,-1512.153808,0.0002537,7]
[331803082,1720767002529,-1512.153808,0.0002537,7]
[331803083,1720767002559,-151.0,0.0002537,7]
[331803084,1720767002589,-672.609766,0.0002537,7]
[331803085,1720767002619,-672.609766,0.0002537,7]
[331803086,1720767002648,-151.0,0.0002537,7]
[331803087,1720767002679,-157.247477,0.0002537,7]
[331803088,1720767002709,-151.0,0.0002537,2]
[331803089,1720767002739,-151.0,0.0002537,7]
[331803090,1720767002769,-151.0,0.0002537,2]
[331803091,1720767002798,-151.0,0.0002537,7]
[331803092,1720767002827,-243.760249,0.0002537,7]
[331803093,1720767002861,-1141.78207,0.0002537,7]
[331803094,1720767002891,-1422.904368,0.0002537,7]
[331803095,1720767002923,-1141.78207,0.0002537,7]
[331803096,1720767002953,-1422.904368,0.0002537,7]
[331803097,1720767002984,-151.0,0.0002537,7]
[331803098,1720767003130,-151.0,0.0002537,7]
[331803099,1720767003163,-151.0,0.0002537,7]
[331803100,1720767003190,-151.0,0.0002537,2]
[331803101,1720767003218,-765.67382,0.0002537,7]
[331803102,1720767003246,-765.67382,0.0002537,7]
[331803103,1720767003274,-151.0,0.0002537,7]
[331803104,1720767003303,-151.0,0.0002537,7]
[331803105,1720767003330,-151.0,0.0002537,7]
[331803106,1720767003358,-302.33493269,0.00025375,2]
[331803107,1720767003390,-1014.23748481,0.000254,2]
[331803108,1720767003417,-551.7477312,0.00025498,2]
[331803109,1720767003446,-7207.31255472,0.000255,2]
[331803167,1720767038516,-418.737751,0.00021096,2]
[331803169,1720767038526,-1406.0,0.00022846,2]
[331803171,1720767038535,-14050.06,0.0002549,3]
[331803173,1720767038545,-11708.38,0.0002549,3]
[331803175,1720767038555,-500.0,0.00025499,2]
[331803177,1720767038565,-202.04989523,0.00025499,2]
[331803179,1720767038574,-500.0,0.00025499,2]
[331803181,1720767038584,-500.0,0.00025499,2]
[331803183,1720767038594,-500.0,0.00025499,2]
[331803185,1720767038604,-159.61676952,0.00025499,2]
[331803187,1720767038614,-500.0,0.00025499,2]
[331803189,1720767038624,-500.0,0.00025499,2]
[331803191,1720767038634,-500.0,0.00025499,2]
[331803193,1720767038643,-243.91467576,0.00025499,2]
[331803195,1720767038653,-500.0,0.00025499,2]
[331803197,1720767038663,-416932.5874963,0.000255,2]
[331803199,1720767038672,-238793.53087935,0.000255,2]
[331803398,1720767040725,-40581.98806263,0.000255,2]
[331803714,1720767043651,-3623.21,0.000255,2]
[331805745,1720768238840,-1001.243903,0.0002,2]
[331805747,1720768238853,-220.388319,0.00021096,2]
[331805750,1720768238866,-397.800863,0.00021096,2]
[331805753,1720768238880,-318.98458833,0.00022,2]
[331805755,1720768238893,-208.756,0.00022956,2]
[331805757,1720768238906,-1064.848,0.00022956,2]
[331805759,1720768238919,-30000.0,0.00023455,2]
[331805761,1720768238932,-30000.0,0.00023455,2]
[331805764,1720768238947,-162.955576,0.00023598,2]
[331805767,1720768238962,-162.236299,0.00024037,2]
[331805769,1720768238977,-162.955576,0.00024402,2]
[331805771,1720768238990,-3318.01082722,0.00025,2]
[331805773,1720768239004,-1000.0,0.00025,25]
[331805775,1720768239017,-151.0,0.00025027,2]
[331805777,1720768239030,-162.955576,0.00025206,2]
[331805780,1720768239049,-151.0,0.00025263,2]
[331805782,1720768239062,-1014.23748484,0.00025391,2]
[331805784,1720768239075,-274.43001276,0.00025391,3]
[331805786,1720768239088,-1014.23748481,0.00025393,2]
[331805788,1720768239101,-1014.23748481,0.00025396,2]
[331805790,1720768239114,-1014.23748481,0.00025398,2]
[331805792,1720768239126,-1014.23748481,0.000254,2]
[331805795,1720768239140,-248.01,0.0002548,3]
[331805797,1720768239153,-744.05,0.0002548,3]
[331805799,1720768239166,-9756.99,0.0002548,3]
[331805801,1720768239178,-8130.82,0.0002548,3]
[331805803,1720768239191,-500.0,0.00025489,2]
[331805805,1720768239204,-500.0,0.00025489,2]
[331805808,1720768239217,-500.0,0.00025489,2]
[331805810,1720768239230,-381.53607698,0.00025489,2]
[331805812,1720768239243,-376.16497334,0.00025489,2]
[331805814,1720768239256,-500.0,0.00025489,2]
[331805816,1720768239271,-500.0,0.00025489,2]
[331805819,1720768239284,-500.0,0.00025489,2]
[331805821,1720768239297,-500.0,0.00025489,2]
[331805823,1720768239311,-500.0,0.00025489,2]
[331805825,1720768239321,-500.0,0.00025489,2]
[331805836,1720768239434,-272.56983352,0.00025489,2]
[331805838,1720768239445,-500.0,0.00025489,2]
[331805840,1720768239454,-500.0,0.00025489,2]
[331805842,1720768239465,-500.0,0.00025489,2]
[331805844,1720768239474,-598.93629295,0.0002549,5]
[331805846,1720768239483,-128776.1698588,0.0002549,3]
[331805961,1720768240998,-162.955576,0.00024006,2]
[331805963,1720768241008,-40419.03248663,0.0002549,3]
[331806569,1720768246931,-6775.68,0.00025481,3]
[331806571,1720768246941,-13224.32,0.0002549,3]
[331810409,1720768949704,40391.75447868,0.00016255,2]
[331810427,1720769365150,-750.0,0.00018899,2]
[331810428,1720769369565,955.33303742,0.00016255,2]
[331810440,1720769432018,-155.17833411,0.000189,2]
[331810442,1720769432027,-205.0,0.00019703,2]
[331810444,1720769432038,-348.10824427,0.00019703,2]
[331810446,1720769432047,-285.0,0.00021095,2]
[331810447,1720769432057,-398.230151,0.00021096,2]
[331810449,1720769432069,-162.955576,0.00023525,2]
[331810450,1720769432078,-155.17833411,0.000239,2]
[331810452,1720769432087,-148.32783328,0.00023968,2]
[331811020,1720769437974,-29851.67216672,0.00023968,2]
[331811022,1720769437985,-486.12101065,0.00024404,2]
[331811024,1720769437995,-664.95085,0.000246,4]
[331811026,1720769438006,-302.33493269,0.000249,2]
[331811029,1720769438015,-161.64049764,0.000249,2]
[331811031,1720769438024,-3318.01082722,0.00025,2]
[331811034,1720769438033,-229.27397426,0.00025047,2]
[331811037,1720769438044,-260.51865148,0.00025094,2]
[331811040,1720769438053,-302.33493268,0.00025149,2]
[331811043,1720769438062,-150.0,0.00025151,2]
[331811045,1720769438072,-6821.084,0.00025151,2]
[331811047,1720769438081,-4923.41801347,0.0002539,2]
[331811049,1720769438090,-20202.9200251,0.00025391,2]
[331811051,1720769438099,-4190.25,0.0002547,3]
[331811053,1720769438109,-6542.38,0.00025471,3]
[331811055,1720769438118,-19245.0474996,0.0002548,3]
[331811058,1720769438128,-15396.0379996,0.00025481,3]
[331811060,1720769438138,-194.02479404,0.0002549,2]
[331811063,1720769438149,-1136.91989435,0.0002549,2]
[331811065,1720769438158,-79.05993058,0.0002549,2]
[331811305,1720769440280,-110.28954397,0.0002549,2]
[331811307,1720769440290,-11547.0284997,0.0002549,3]
[331811309,1720769440300,-15396.0379996,0.00025491,3]
[331811311,1720769440311,-267.07525388,0.00025499,2]
[331811314,1720769440320,-500.0,0.00025499,2]
[331811316,1720769440329,-613.31548134,0.00025499,2]
[331811318,1720769440338,-540.79888346,0.00025499,2]
[331811320,1720769440348,-500.0,0.00025499,2]
[331811322,1720769440357,-500.0,0.00025499,2]
[331811323,1720769440367,-500.0,0.00025499,2]
[331811325,1720769440375,-500.0,0.00025499,2]
[331811327,1720769440384,-500.0,0.00025499,2]
[331811329,1720769440393,-500.0,0.00025499,2]
[331811331,1720769440402,-299.46814648,0.000255,5]
[331811333,1720769440411,-151.0,0.000255,2]
[331811335,1720769440420,-7994.0186782,0.000255,2]
[331811337,1720769440431,-49151.09527355,0.000255,2]
[331811617,1720769443161,-496.02,0.0002549,3]
[331811619,1720769443171,-2641.76196722,0.0002549,3]
[331815211,1720770069824,-80380.1483905,0.00022932,3]
[331815212,1720770069877,-299.46814648,0.00022942,5]
[331815213,1720770069926,-5000.0,0.00025,6]
[331815214,1720770069974,-1000.0,0.00025,25]
[331815215,1720770070022,-80380.1483905,0.0002548,3]
[331815216,1720770070072,-160760.296781,0.0002549,3]
[331815217,1720770070120,-80380.1483905,0.00025491,3]
[331815218,1720770070164,-187.171892,0.000255,7]
[331815219,1720770070211,-187.171892,0.000255,7]
[331815220,1720770070257,-151.0,0.000255,7]
[331815221,1720770070304,-151.0,0.000255,7]
[331815222,1720770070349,-151.0,0.000255,7]
[331815223,1720770070396,-151.0,0.000255,7]
[331815224,1720770070444,-151.0,0.000255,7]
[331815225,1720770070493,-1000.0,0.00026,26]
[331815226,1720770070539,-807.512748,0.0002658,7]
[331815227,1720770070584,-151.0,0.0002658,7]
[331815228,1720770070631,-151.0,0.0002658,7]
[331815229,1720770070679,-807.512748,0.0002658,7]
[331815230,1720770070725,-157.247477,0.0002658,7]
[331815231,1720770070774,-151.0,0.0002658,7]
[331815232,1720770070819,-278.350146,0.0002658,7]
[331815233,1720770070864,-151.0,0.0002658,7]
[331815234,1720770070915,-187.134815,0.0002658,7]
[331815235,1720770070967,-187.134815,0.0002658,7]
[331815236,1720770071019,-256.01468,0.0002658,7]
[331815237,1720770071066,-256.01468,0.0002658,7]
[331815238,1720770071113,-154.305594,0.0002658,7]
[331815239,1720770071160,-1232.373047,0.0002658,7]
[331815240,1720770071205,-152.110826,0.0002658,7]
[331815241,1720770071253,-1232.373047,0.0002658,7]
[331815242,1720770071302,-741.456042,0.0002658,7]
[331815243,1720770071351,-1322.795516,0.0002658,7]
[331815244,1720770071396,-1322.795516,0.0002658,7]
[331815245,1720770071442,-741.456042,0.0002658,7]
[331815246,1720770071487,-234.496811,0.0002658,7]
[331815247,1720770071532,-234.496811,0.0002658,7]
[331815248,1720770071580,-814.957266,0.0002658,7]
[331815249,1720770071704,-814.957266,0.0002658,7]
[331815250,1720770071749,-187.171892,0.0002665,7]
[331815251,1720770071795,-187.171892,0.0002665,7]
[331815252,1720770071842,-151.0,0.0002665,7]
[331815253,1720770071888,-151.0,0.0002665,7]
[331815254,1720770071934,-151.0,0.0002665,7]
[331815255,1720770071982,-153.866782,0.0002665,7]
[331815256,1720770072029,-628.026556,0.0002665,7]
[331815257,1720770072074,-628.026556,0.0002665,7]
[331815258,1720770072121,-151.0,0.0002665,7]
[331815259,1720770072166,-151.0,0.0002666,7]
[331815260,1720770072209,-239.551692,0.0002666,7]
[331815261,1720770072258,-1189.816574,0.0002666,7]
[331815262,1720770072304,-1189.816574,0.0002666,7]
[331815263,1720770072347,-151.0,0.0002666,7]
[331815264,1720770072392,-151.0,0.0002666,7]
[331815265,1720770072434,-795.101644,0.0002666,7]
[331815266,1720770072480,-795.101644,0.0002666,7]
[331815267,1720770072530,-152.774875,0.00026669,7]
[331815268,1720770072577,-151.0,0.00026669,7]
[331815269,1720770072624,-151.0,0.0002667,7]
[331815270,1720770072670,-151.0,0.0002667,7]
[331815271,1720770072714,-151.0,0.0002667,7]
[331815272,1720770072764,-287.313508,0.0002682,7]
[331815273,1720770072810,-153.288607,0.0002682,7]
[331815274,1720770072860,-153.288607,0.0002682,7]
[331815275,1720770072906,-151.0,0.00026849,7]
[331815276,1720770072949,-151.0,0.00026849,7]
[331815277,1720770073001,-796.82947827,0.00027,15]
[331815278,1720770073049,-518.06470788,0.00027397,7]
[331815279,1720770073100,-506.22340016,0.00027397,7]
[331815280,1720770073157,-505.98635886,0.00027397,7]
[331815281,1720770073213,-516.35908308,0.00027397,7]
[331815282,1720770073263,-511.20859604,0.00027397,7]
[331815283,1720770073311,-500.0,0.00027397,7]
[331815284,1720770073362,-500.0,0.00027397,7]
[331815285,1720770073422,-500.0,0.00027397,7]
[331815286,1720770073480,-500.0,0.00027397,7]
[331815287,1720770073537,-500.0,0.00027397,7]
[331815288,1720770073583,-500.0,0.00027397,4]
[331815289,1720770073634,-500.0,0.00027397,7]
[331815290,1720770073682,-500.0,0.00027397,7]
[331815291,1720770073739,-500.0,0.00027397,7]
[331815292,1720770073798,-500.0,0.00027397,7]
[331815293,1720770073847,-500.0,0.00027397,7]
[331815294,1720770073894,-500.0,0.00027397,7]
[331815295,1720770073946,-500.0,0.00027397,7]
[331815296,1720770073998,-500.0,0.00027397,7]
[331815297,1720770074048,-517.08523214,0.00027397,7]
[331815298,1720770074096,-500.0,0.00027397,7]
[331815299,1720770074144,-500.0,0.00027397,7]
[331815300,1720770074196,-500.0,0.00027397,7]
[331815301,1720770074245,-500.0,0.00027397,7]
[331815302,1720770074294,-524.47944984,0.00027397,7]
[331815303,1720770074341,-500.0,0.00027397,7]
[331815304,1720770074388,-500.0,0.00027397,7]
[331815306,1720770074529,-189.28267124,0.00027397,7]
[331815307,1720770074577,-511.00217074,0.00027397,7]
[331815308,1720770074627,-500.0,0.00027397,7]
[331815309,1720770074674,-500.0,0.00027397,7]
[331815310,1720770074723,-500.0,0.00027397,7]
[331815311,1720770074773,-500.0,0.00027397,7]
[331815312,1720770074830,-500.0,0.00027397,7]
[331815313,1720770074889,-500.0,0.00027397,7]
[331815314,1720770074940,-500.0,0.00027397,7]
[331815315,1720770074989,-500.0,0.00027397,7]
[331815316,1720770075042,-500.0,0.00027397,7]
[331815317,1720770075093,-500.0,0.00027397,7]
[331815318,1720770075143,-505.27020286,0.00027397,7]
[331815319,1720770075925,-500.0,0.00027397,7]
[331815320,1720770075977,-503.41253006,0.00027397,7]
[331815321,1720770076034,-508.89900897,0.00027397,7]
[331815322,1720770076085,-500.0,0.00027397,7]
[331815323,1720770076134,-500.0,0.00027397,7]
[331815324,1720770076184,-518.8874838,0.00027397,7]
[331815325,1720770076232,-500.0,0.00027397,7]
[331815326,1720770076283,-639.74,0.00027397,7]
[331815327,1720770076332,-500.0,0.00027397,7]
[331815328,1720770076381,-500.0,0.00027397,7]
[331815329,1720770076431,-500.0,0.00027397,7]
[331815330,1720770076482,-566.21224073,0.00027397,7]
[331815331,1720770076532,-500.0,0.00027397,7]
[331815332,1720770076584,-500.0,0.00027397,7]
[331815333,1720770076637,-528.03008142,0.00027397,7]
[331815334,1720770076703,-153.288607,0.00027397,7]
[331815335,1720770076767,-153.288607,0.00027397,7]
[331815336,1720770076832,-153.288607,0.00027397,7]
[331815337,1720770076897,-500.0,0.00027397,7]
[331815338,1720770076963,-500.0,0.00027397,7]
[331815339,1720770077025,-507.15173325,0.00027397,7]
[331815340,1720770077090,-153.288607,0.00027397,7]
[331815341,1720770077155,-153.288607,0.00027397,7]
[331815342,1720770077215,-153.288607,0.00027397,7]
[331815343,1720770077273,-500.0,0.00027397,7]
[331815344,1720770077331,-500.0,0.00027397,7]
[331815345,1720770077392,-500.0,0.00027397,7]
[331815346,1720770077829,-500.0,0.00027397,7]
[331815347,1720770077890,-500.0,0.00027397,7]
[331815348,1720770077950,-500.0,0.00027397,7]
[331815349,1720770078004,-500.0,0.00027397,7]
[331815350,1720770078061,-519.168318,0.00027397,7]
[331815351,1720770078117,-500.0,0.00027397,7]
[331815352,1720770078173,-618.13628608,0.00027397,7]
[331815353,1720770078229,-511.41879591,0.00027397,7]
[331815354,1720770078285,-500.0,0.00027397,7]
[331815355,1720770078342,-500.0,0.00027397,7]
[331815356,1720770078400,-503.29460758,0.00027397,7]
[331815357,1720770078460,-505.38532649,0.00027397,7]
[331815358,1720770078519,-500.0,0.00027397,7]
[331815359,1720770078581,-500.0,0.00027397,7]
[331815360,1720770078756,-500.0,0.00027397,7]
[331815361,1720770078818,-500.0,0.00027397,7]
[331815362,1720770078872,-500.0,0.00027397,7]
[331815363,1720770078923,-500.0,0.00027397,7]
[331815364,1720770078975,-500.0,0.00027397,7]
[331815365,1720770079033,-500.0,0.00027397,7]
[331815366,1720770079095,-500.0,0.00027397,7]
[331815367,1720770079149,-500.0,0.00027397,7]
[331815368,1720770079202,-500.0,0.00027397,7]
[331815369,1720770079252,-500.0,0.00027397,7]
[331815370,1720770079306,-500.0,0.00027397,7]
[331815371,1720770079357,-500.0,0.00027397,7]
[331815372,1720770079406,-500.0,0.00027397,7]
[331815373,1720770079459,-500.0,0.00027397,7]
[331815374,1720770079512,-500.0,0.00027397,7]
[331815375,1720770079564,-500.0,0.00027397,7]
[331815376,1720770079614,-500.0,0.00027397,7]
[331815377,1720770079665,-500.0,0.00027397,7]
[331815378,1720770079714,-500.0,0.00027397,7]
[331815379,1720770079762,-500.0,0.00027397,7]
[331815380,1720770079811,-634.81449122,0.00027397,7]
[331815381,1720770079859,-500.0,0.00027397,7]
[331815382,1720770079906,-500.0,0.00027397,7]
[331815383,1720770079956,-500.0,0.00027397,7]
[331815384,1720770080006,-500.0,0.00027397,7]
[331815385,1720770080053,-510.30397844,0.00027397,7]
[331815386,1720770080104,-504.74508989,0.00027397,7]
[331815387,1720770080152,-500.0,0.00027397,7]
[331815388,1720770080200,-515.54356475,0.00027397,7]
[331815389,1720770080249,-500.0,0.00027397,7]
[331815390,1720770080297,-500.0,0.00027397,7]
[331815391,1720770080341,-500.0,0.00027397,7]
[331815392,1720770080384,-508.60313527,0.00027397,7]
[331815393,1720770080430,-511.41688942,0.00027397,7]
[331815394,1720770080473,-500.0,0.00027397,7]
[331815395,1720770080521,-500.0,0.00027397,7]
[331815396,1720770080569,-511.0992082,0.00027397,7]
[331815397,1720770080614,-500.0,0.00027397,7]
[331815398,1720770080659,-500.0,0.00027397,7]
[331815399,1720770080704,-508.27834684,0.00027397,7]
[331815400,1720770080748,-519.068149,0.00027397,7]
[331815401,1720770080797,-500.0,0.00027397,7]
[331815402,1720770080843,-514.36489926,0.00027397,7]
[331815403,1720770080890,-513.00697305,0.00027397,7]
[331815404,1720770080941,-500.0,0.00027397,7]
[331815405,1720770080997,-506.1473347,0.00027397,7]
[331815406,1720770081045,-500.0,0.00027397,7]
[331815407,1720770081092,-500.0,0.00027397,7]
[331815408,1720770081142,-500.0,0.00027397,7]
[331815409,1720770081191,-503.85503635,0.00027397,7]
[331815410,1720770081238,-500.0,0.00027397,7]
[331815411,1720770081284,-503.59972761,0.00027397,7]
[331815412,1720770081330,-229.617439,0.00027397,7]
[331815413,1720770081378,-500.0,0.00027397,7]
[331815414,1720770081427,-500.0,0.00027397,7]
[331815415,1720770081473,-486.29085758,0.00027397,7]
[331815416,1720770081517,-500.0,0.00027397,7]
[331815417,1720770081563,-495.61829504,0.00027397,7]
[331815668,1720770638076,-162.41374331,0.00021095,2]
[331815670,1720770638087,-415.818643,0.00021096,2]
[331815672,1720770638096,-162.9555765,0.00022464,2]
[331815674,1720770638105,-1406.0,0.00023088,2]
[331815676,1720770638115,-500.0,0.00023966,2]
[331815677,1720770638124,-909.62303466,0.00024381,2]
[331815679,1720770638133,-3318.01082722,0.00025,2]
[331815681,1720770638143,-505.0,0.00025,2]
[331815683,1720770638152,-229.27397426,0.00025,2]
[331815685,1720770638162,-260.51865148,0.00025127,2]
[331815687,1720770638171,-60285.1112929,0.00025184,3]
[331815689,1720770638180,-5011.69,0.00025184,3]
[331815698,1720770638260,-40703.58425663,0.00025194,3]
[331815881,1720770640185,-40581.98806263,0.00025194,3]
[331816205,1720770643357,-1.5034914,0.00025194,3]
[331819922,1720771832267,-419.447466,0.00021096,2]
[331819924,1720771832277,-166.666666,0.00021918,2]
[331819926,1720771832287,-4298.33083706,0.00022941,2]
[331819977,1720771838342,-153.12684351,0.00022941,2]
[331819979,1720771838352,-1000.0,0.00023,10]
[331819981,1720771838362,-300.0,0.00023058,2]
[331819983,1720771838371,-300.0,0.00023058,2]
[331819985,1720771838380,-24890.0,0.00023059,2]
[331819987,1720771838390,-1406.0,0.00023088,2]
[331819989,1720771838399,-150.0,0.00023094,2]
[331819991,1720771838408,-910.65849537,0.00023801,2]
[331819993,1720771838417,-161.078672,0.00023901,2]
[331819995,1720771838427,-3318.01082722,0.00025,2]
[331819997,1720771838436,-1000.0,0.00025,25]
[331819999,1720771838446,-153.2173675,0.00025,2]
[331820001,1720771838455,-295.59,0.00025184,3]
[331820004,1720771838465,-886.81,0.00025184,3]
[331820008,1720771838475,-464.29869828,0.00025193,2]
[331820012,1720771838484,-1147.90148097,0.00025194,2]
[331820016,1720771838493,-189.34947455,0.00025194,2]
[331820020,1720771838503,-106395.11559537,0.00025194,3]
[331820221,1720771840508,-39584.87005563,0.00025194,3]
[331820223,1720771840517,-997.118007,0.00025202,10]
[331820517,1720771843330,-4176.16,0.00025194,3]
[331820518,1720771843340,-2.881993,0.00025202,10]
[331820519,1720771843349,-1000.0,0.00025203,10]
[331820520,1720771843358,-252.15311988,0.00025203,10]
[331820521,1720771843368,-333.06355559,0.00025203,2]
[331820522,1720771843377,-500.0,0.00025203,2]
[331820524,1720771843387,-500.0,0.00025203,2]
[331820526,1720771843397,-500.0,0.00025203,2]
[331820528,1720771843406,-398.72686797,0.00025203,2]
[331820530,1720771843415,-540.79888346,0.00025203,2]
[331820532,1720771843425,-500.0,0.00025203,2]
[331820535,1720771843434,-500.0,0.00025203,2]
[331820537,1720771843443,-500.0,0.00025203,2]
[331820538,1720771843452,-500.0,0.00025203,2]
[331820539,1720771843461,-500.0,0.00025203,2]
[331820541,1720771843471,-179.10880757,0.00025203,2]
[331820543,1720771843480,-45748.43493207,0.00025204,2]